[Event "46th OKU-B 2019"]
[Site "Utrecht"]
[Date "2019.06.01"]
[Round "2.7"]
[White "Van Nie, Pjotr"]
[Black "Wagenaar, Harm Theo"]
[Result "1-0"]
[ECO "D02"]
[WhiteElo "1487"]
[BlackElo "1800"]
[Annotator "NA"]
[PlyCount "77"]
[EventDate "2019.05.31"]
[EventType "swiss"]
[EventCountry "NED"]
[SourceTitle "playchess.com"]
[Source "ChessBase"]
[SourceQuality "1"]
[TimeControl "6600+10"]

1. d4 {[%emt 0:00:00]} d5 {[%emt 0:00:00]} 2. Bf4 {[%emt 0:00:01]} Nf6 {[%emt 0:00:44]} 3. e3 {[%emt 0:00:10]} c6 {[%emt 0:02:30]} 4. c3 {[%emt 0:00:27]} Bf5 {[%emt 0:01:08]} 5. Nd2 {[%emt 0:01:13]} e6 {[%emt 0:01:37]} 6. Ngf3 {[%emt 0:01:25]} h6 {[%emt 0:01:05]} 7. Ne5 {[%emt 0:01:52]} Nbd7 {[%emt 0:01:22]} 8. Be2 {[%emt 0:02:08]} Nxe5 {[%emt 0:04:10]} 9. Bxe5 {[%emt 0:00:44]} Bd6 {[%emt 0:01:30]} 10. Bxd6 {[%emt 0:00:48]} Qxd6 {[%emt 0:00:04]} 11. Nf3 $11 {[%emt 0:01:42]} O-O {[%emt 0:01:36]} 12. O-O {[%emt 0:01:32]} b6 {[%emt 0:12:24]} 13. Ne5 {[%emt 0:01:13]} c5 {[%emt 0:02:00]} 14. Bf3 {[%emt 0:02:39]} Rac8 {[%emt 0:03:30]} 15. Rc1 {[%emt 0:01:29]} Rfd8 {[%emt 0:03:12]} 16. Re1 {[%emt 0:01:33]} Rc7 {[%emt 0:11:51]} 17. Qa4 {[%emt 0:03:51]} Rdc8 {[%emt 0:05:10]} 18. Be2 {[%emt 0:01:09]} c4 {[%emt 0:03:51]} 19. a3 {[%emt 0:03:08]} Ne8 {[%emt 0:07:05]} 20. Qb4 {[%emt 0:10:27]} f6 {[%emt 0:02:19]} 21. Qxd6 {[%emt 0:00:26]} Nxd6 {[%emt 0:00:08]} 22. Nf3 {[%emt 0:00:10]} b5 {[%emt 0:03:13]} 23. Ra1 {[%emt 0:01:37]} Rb8 {[%emt 0:02:54]} 24. Nd2 {[%emt 0:01:18]} a5 {[%emt 0:03:10]} 25. f3 {[%emt 0:01:41]} b4 {[%emt 0:04:26]} 26. axb4 {[%emt 0:00:12]} axb4 {[%emt 0:00:02]} 27. Ra6 {[%emt 0:02:40]} bxc3 {[%emt 0:02:59]} 28. bxc3 {[%emt 0:00:54]} Rb2 {[%emt 0:05:49]} 29. Rxd6 {[%emt 0:03:16]} Rxd2 {[%emt 0:00:55]} 30. g4 {[%emt 0:03:08]} Bg6 {[%emt 0:00:18]} 31. Rxe6 {[%emt 0:04:10]} Rc2 {[%emt 0:00:52]} 32. Rd6 {[%emt 0:00:25]} Bf7 {[%emt 0:06:09]} 33. e4 {[%emt 0:01:16]} dxe4 {[%emt 0:00:22]} 34. fxe4 {[%emt 0:00:13]} Rxc3 {[%emt 0:00:15]} 35. d5 {[%emt 0:01:19]} Rc8 {[%emt 0:05:46]} 36. Rc6 {[%emt 0:02:19]} Rxc6 {[%emt 0:03:09]} 37. dxc6 {[%emt 0:00:05]} Re3 {[%emt 0:00:18]} 38. c7 {[%emt 0:00:39]} Be6 {[%emt 0:02:15]} 39. c8=Q+ {[%emt 0:00:08] Bf7 [%clk 00:05:48] [%emt 00:00:20]} 1-0

[Event "46th OKU-B 2019"]
[Site "Utrecht"]
[Date "2019.06.01"]
[Round "2.8"]
[White "Van Aken, Jelmer"]
[Black "Wallace, Mitchel"]
[Result "1-0"]
[ECO "B07"]
[WhiteElo "1698"]
[BlackElo "1798"]
[Annotator "NA"]
[PlyCount "67"]
[EventDate "2019.05.31"]
[EventType "swiss"]
[EventCountry "NED"]
[SourceTitle "playchess.com"]
[Source "ChessBase"]
[SourceQuality "1"]
[TimeControl "6600+10"]

1. e4 {[%emt 0:00:00]} d6 {[%emt 0:20:20]} 2. d4 {[%emt 0:00:20]} Nf6 {[%emt 0:00:22]} 3. Nc3 {[%emt 0:00:27]} Nbd7 {[%emt 0:00:25]} 4. Be3 {[%emt 0:02:20]} e5 {[%emt 0:00:42]} 5. Bc4 {[%emt 0:03:28]} c6 {[%emt 0:01:38]} 6. Bb3 {[%emt 0:03:24]} Be7 {[%emt 0:01:39]} 7. Nf3 {[%emt 0:04:45]} h6 {[%emt 0:01:39]} 8. Qe2 {[%emt 0:03:29]} Qc7 {[%emt 0:03:48]} 9. h3 {[%emt 0:06:23]} a5 {[%emt 0:02:54]} 10. a4 {[%emt 0:09:31]} Nf8 {[%emt 0:03:23]} 11. O-O-O {[%emt 0:07:16]} b6 {[%emt 0:16:07]} 12. Qc4 {[%emt 0:07:23]} Ne6 {[%emt 0:06:50]} 13. Qe2 {[%emt 0:13:47]} Ba6 {[%emt 0:13:42]} 14. Bc4 {[%emt 0:00:39]} Bxc4 {[%emt 0:01:57]} 15. Qxc4 {[%emt 0:00:05]} O-O {[%emt 0:00:55]} 16. g4 {[%emt 0:07:38]} exd4 {[%emt 0:07:00]} 17. Nxd4 {[%emt 0:00:46]} Nxd4 {[%emt 0:00:42]} 18. Rxd4 {[%emt 0:01:45]} Qb7 {[%emt 0:03:41]} 19. Bf4 {[%emt 0:02:37]} Nxe4 {[%emt 0:04:08]} 20. Rxe4 {[%emt 0:03:20]} d5 {[%emt 0:00:15]} 21. Rxe7 {[%emt 0:00:05]} Qxe7 {[%emt 0:00:33]} 22. Qxc6 {[%emt 0:00:12]} Rac8 {[%emt 0:04:15]} 23. Nxd5 {[%emt 0:02:15]} Qe2 {[%emt 0:00:19]} 24. Bc7 {[%emt 0:00:18]} Rfe8 {[%emt 0:09:22]} 25. Nxb6 {[%emt 0:01:11]} Re6 {[%emt 0:01:50]} 26. Qd7 {[%emt 0:03:43]} Rce8 {[%emt 0:00:22]} 27. Rd1 {[%emt 0:04:10]} Qxf2 {[%emt 0:01:11]} 28. Nc4 {[%emt 0:01:37]} Qc5 {[%emt 0:01:45]} 29. Nd6 {[%emt 0:02:55]} R6e7 {[%emt 0:00:39]} 30. Qb5 {[%emt 0:00:24]} Qe3+ {[%emt 0:01:44]} 31. Kb1 {[%emt 0:00:20]} Re5 {[%emt 0:00:35]} 32. Qxe8+ {[%emt 0:01:05]} Rxe8 {[%emt 0:00:01]} 33. Nxe8 {[%emt 0:00:08]} Qxe8 {[%emt 0:00:00]} 34. Rd8 {[%emt 0:00:07]} 1-0

[Event "46th OKU-B 2019"]
[Site "Utrecht"]
[Date "2019.06.01"]
[Round "3.1"]
[White "Boittin, Pascal"]
[Black "Aguado Garcia, Pablo"]
[Result "1/2-1/2"]
[ECO "C67"]
[WhiteElo "1838"]
[BlackElo "1890"]
[Annotator "NA"]
[PlyCount "49"]
[EventDate "2019.05.31"]
[EventType "swiss"]
[EventCountry "NED"]
[SourceTitle "playchess.com"]
[Source "ChessBase"]
[SourceQuality "1"]
[TimeControl "6600+10"]

1. e4 {[%emt 0:00:01]} e5 {[%emt 0:00:00]} 2. Nf3 {[%emt 0:00:34]} Nc6 {[%emt 0:00:02]} 3. Bb5 {[%emt 0:00:44]} Nf6 {[%emt 0:00:18]} 4. O-O {[%emt 0:03:16]} Nxe4 {[%emt 0:00:16]} 5. Re1 {[%emt 0:00:25]} Nd6 {[%emt 0:00:52]} 6. Nxe5 {[%emt 0:00:39]} Be7 {[%emt 0:00:16]} 7. Bf1 {[%emt 0:07:04]} Nxe5 {[%emt 0:00:45]} 8. Rxe5 {[%emt 0:00:15]} O-O {[%emt 0:00:06]} 9. d4 {[%emt 0:04:14]} Bf6 {[%emt 0:00:06]} 10. Re1 {[%emt 0:00:22]} Nf5 {[%emt 0:06:03]} 11. c3 {[%emt 0:02:32]} d5 {[%emt 0:00:25]} 12. Nd2 $11 {[%emt 0:01:14]} Nh4 {[%emt 0:07:00]} 13. Bd3 {[%emt 0:05:05]} Bf5 {[%emt 0:02:48]} 14. Bxf5 {[%emt 0:06:10]} Nxf5 {[%emt 0:00:06]} 15. Nf3 {[%emt 0:00:13]} Nh4 {[%emt 0:05:53]} 16. Bf4 {[%emt 0:02:41]} Nxf3+ {[%emt 0:02:55]} 17. Qxf3 {[%emt 0:00:15]} Qd7 {[%emt 0:00:25]} 18. Re2 {[%emt 0:03:39]} Rae8 {[%emt 0:01:01]} 19. Rae1 {[%emt 0:00:15]} Rxe2 {[%emt 0:01:47]} 20. Qxe2 {[%emt 0:01:29]} c6 {[%emt 0:00:09]} 21. Kf1 {[%emt 0:06:38]} Rd8 {[%emt 0:01:19]} 22. h3 {[%emt 0:01:20]} Qc8 {[%emt 0:02:58]} 23. Bc7 {[%emt 0:01:36]} Rf8 {[%emt 0:00:20]} 24. Bd6 {[%emt 0:00:11]} Rd8 {[%emt 0:00:04]} 25. Bc7 {[%emt 0:00:17]} 1/2-1/2

[Event "46th OKU-B 2019"]
[Site "Utrecht"]
[Date "2019.06.01"]
[Round "3.2"]
[White "Cheng, Di"]
[Black "Flohr, Ron"]
[Result "0-1"]
[ECO "D08"]
[WhiteElo "1391"]
[BlackElo "1883"]
[Annotator "NA"]
[PlyCount "74"]
[EventDate "2019.05.31"]
[EventType "swiss"]
[EventCountry "NED"]
[SourceTitle "playchess.com"]
[Source "ChessBase"]
[SourceQuality "1"]
[TimeControl "6600+10"]

1. d4 {[%emt 0:00:00]} d5 {[%emt 0:00:23]} 2. c4 {[%emt 0:00:00]} e5 {[%emt 0:00:16]} 3. dxe5 {[%emt 0:01:11]} d4 {[%emt 0:00:17]} 4. Nf3 {[%emt 0:00:15]} Nc6 {[%emt 0:00:19]} 5. e3 {[%emt 0:01:01]} Bb4+ {[%emt 0:00:24]} 6. Bd2 {[%emt 0:00:39]} dxe3 {[%emt 0:01:45]} 7. fxe3 {[%emt 0:00:17]} Bg4 {[%emt 0:02:56]} 8. Be2 {[%emt 0:00:14]} Qe7 {[%emt 0:00:29]} 9. O-O {[%emt 0:05:03]} O-O-O {[%emt 0:00:26]} 10. Nd4 {[%emt 0:05:33]} Bxe2 {[%emt 0:05:24]} 11. Nxc6 {[%emt 0:03:19]} Bxd1 {[%emt 0:01:48]} 12. Nxe7+ {[%emt 0:00:05]} Bxe7 {[%emt 0:01:24]} 13. Rxd1 {[%emt 0:00:06]} Nh6 {[%emt 0:00:36]} 14. Nc3 {[%emt 0:00:21]} Ng4 {[%emt 0:00:41]} 15. Nd5 $15 {[%emt 0:01:30]} (15. e6 $5) 15... Bg5 {[%emt 0:00:32]} 16. Bc3 {[%emt 0:13:07]} c6 {[%emt 0:00:47]} 17. Nf4 {[%emt 0:01:56]} Nxe3 {[%emt 0:00:49]} 18. Rxd8+ {[%emt 0:00:20]} Rxd8 {[%emt 0:00:07]} 19. Nh3 {[%emt 0:00:14]} Be7 {[%emt 0:01:28]} 20. Kf2 {[%emt 0:09:28]} Nxc4 {[%emt 0:03:14]} 21. Ke2 {[%emt 0:01:29]} f6 {[%emt 0:03:49]} 22. Nf4 {[%emt 0:10:29]} fxe5 {[%emt 0:06:24]} 23. Ne6 {[%emt 0:02:12]} Rg8 {[%emt 0:02:13]} 24. b3 {[%emt 0:01:04]} Kd7 {[%emt 0:00:44]} 25. bxc4 {[%emt 0:07:19]} Kxe6 {[%emt 0:00:13]} 26. Rb1 {[%emt 0:01:10]} b6 {[%emt 0:00:42]} 27. Ke3 {[%emt 0:00:23]} Rf8 {[%emt 0:00:11]} 28. g3 {[%emt 0:00:21]} Bc5+ {[%emt 0:00:15]} 29. Ke4 {[%emt 0:01:34]} Rf2 {[%emt 0:00:49]} 30. Rb2 {[%emt 0:01:01]} Rf1 {[%emt 0:00:58]} 31. Re2 {[%emt 0:00:35]} Bd6 {[%emt 0:02:48]} 32. Bd2 {[%emt 0:02:52]} h5 {[%emt 0:00:59]} 33. Bg5 {[%emt 0:01:16]} Bc5 {[%emt 0:01:58]} 34. Bd2 {[%emt 0:02:57]} Bd4 {[%emt 0:00:26]} 35. Bg5 {[%emt 0:01:03]} Kd6 {[%emt 0:00:56]} 36. Bd8 {[%emt 0:01:25]} Rc1 {[%emt 0:00:54]} 37. Kd3 {[%emt 0:00:14]} Rc3+ {[%emt 0:00:17] Kxd4 [%emt 00:03:10]} 0-1

[Event "46th OKU-B 2019"]
[Site "Utrecht"]
[Date "2019.06.01"]
[Round "3.3"]
[White "Van de Lagemaat, Arend"]
[Black "Van Nie, Pjotr"]
[Result "1-0"]
[ECO "B06"]
[WhiteElo "1855"]
[BlackElo "1487"]
[Annotator "NA"]
[PlyCount "67"]
[EventDate "2019.05.31"]
[EventType "swiss"]
[EventCountry "NED"]
[SourceTitle "playchess.com"]
[Source "ChessBase"]
[SourceQuality "1"]
[TimeControl "6600+10"]

1. e4 {[%emt 0:00:00]} g6 {[%emt 0:00:00]} 2. Bc4 {[%emt 0:01:09]} Bg7 {[%emt 0:00:21]} 3. Nc3 {[%emt 0:00:50]} c5 {[%emt 0:00:42]} 4. Nge2 {[%emt 0:01:50]} Nc6 {[%emt 0:00:27]} 5. a3 {[%emt 0:02:10]} d6 {[%emt 0:00:32]} 6. d3 $11 {[%emt 0:00:24]} Nf6 {[%emt 0:00:31]} 7. Ng3 {[%emt 0:05:18]} Nd4 {[%emt 0:02:14]} 8. h4 {[%emt 0:03:22]} h5 {[%emt 0:01:53]} 9. Bg5 {[%emt 0:05:49]} a6 {[%emt 0:02:08]} 10. f4 {[%emt 0:06:04]} Bg4 {[%emt 0:02:22]} 11. Qd2 {[%emt 0:00:17]} Nh7 {[%emt 0:01:50]} 12. f5 {[%emt 0:03:48]} Nxg5 {[%emt 0:00:41]} 13. hxg5 {[%emt 0:00:15]} gxf5 {[%emt 0:04:58]} 14. O-O {[%emt 0:03:26]} e6 {[%emt 0:01:37]} 15. exf5 {[%emt 0:02:39]} Nxf5 {[%emt 0:02:52]} 16. Nxf5 {[%emt 0:02:18]} Bxf5 {[%emt 0:00:13]} 17. Rxf5 {[%emt 0:01:32]} exf5 {[%emt 0:00:19]} 18. Re1+ {[%emt 0:01:07]} Be5 {[%emt 0:04:36]} 19. Nd5 {[%emt 0:05:16]} Kf8 {[%emt 0:04:15]} 20. c3 {[%emt 0:01:33]} Rg8 {[%emt 0:01:56]} 21. d4 {[%emt 0:00:54]} Bh8 {[%emt 0:03:44]} 22. Re7 {[%emt 0:02:53]} Rg6 {[%emt 0:03:52]} 23. Qf4 {[%emt 0:07:34]} b5 {[%emt 0:05:31]} 24. Be2 {[%emt 0:08:21]} Re6 {[%emt 0:02:10]} 25. Rxf7+ {[%emt 0:00:15]} Kxf7 {[%emt 0:01:59]} 26. Qxf5+ {[%emt 0:00:51]} Bf6 {[%emt 0:01:21]} 27. Bxh5+ {[%emt 0:00:33]} Kg7 {[%emt 0:01:36]} 28. Qg6+ {[%emt 0:05:21]} Kh8 {[%emt 0:00:21]} 29. Qh6+ {[%emt 0:01:52]} Kg8 {[%emt 0:00:12]} 30. gxf6 {[%emt 0:02:09]} Ra7 {[%emt 0:03:07]} 31. f7+ {[%emt 0:00:17]} Rxf7 {[%emt 0:00:15]} 32. Qxe6 {[%emt 0:00:05]} Qf8 {[%emt 0:01:13]} 33. Qxf7+ {[%emt 0:00:38]} Qxf7 {[%emt 0:00:05]} 34. Bxf7+ {[%emt 0:00:10]} 1-0

[Event "46th OKU-B 2019"]
[Site "Utrecht"]
[Date "2019.06.01"]
[Round "3.4"]
[White "De Vroome, Ernest"]
[Black "Van Aken, Jelmer"]
[Result "0-1"]
[ECO "B87"]
[WhiteElo "1893"]
[BlackElo "1698"]
[Annotator "NA"]
[PlyCount "84"]
[EventDate "2019.05.31"]
[EventType "swiss"]
[EventCountry "NED"]
[SourceTitle "playchess.com"]
[Source "ChessBase"]
[SourceQuality "1"]
[TimeControl "6600+10"]

1. e4 {[%emt 0:00:07]} c5 {[%emt 0:00:00]} 2. Nf3 {[%emt 0:00:07]} d6 {[%emt 0:00:00]} 3. d4 {[%emt 0:00:05]} cxd4 {[%emt 0:00:02]} 4. Nxd4 {[%emt 0:00:09]} Nf6 {[%emt 0:00:04]} 5. Nc3 {[%emt 0:00:11]} a6 {[%emt 0:00:05]} 6. Bc4 {[%emt 0:00:17]} e6 {[%emt 0:02:07]} 7. Be3 {[%emt 0:00:42]} b5 {[%emt 0:00:48]} 8. Bb3 {[%emt 0:00:51]} Bb7 {[%emt 0:01:51]} 9. f3 {[%emt 0:04:24]} Nbd7 {[%emt 0:01:58]} 10. a3 {[%emt 0:02:24]} Rc8 {[%emt 0:01:56]} 11. Qd2 {[%emt 0:03:46]} Nb6 {[%emt 0:02:40]} 12. O-O {[%emt 0:10:17]} Qc7 {[%emt 0:04:57]} 13. Rad1 {[%emt 0:05:43]} d5 {[%emt 0:01:25]} 14. exd5 {[%emt 0:07:40]} Nfxd5 {[%emt 0:00:31]} 15. Ne4 {[%emt 0:04:08]} Be7 {[%emt 0:05:55]} 16. Bf2 {[%emt 0:02:29]} O-O {[%emt 0:04:14]} 17. Bg3 {[%emt 0:03:11]} Qd7 {[%emt 0:00:24]} 18. Rfe1 {[%emt 0:02:27]} Rfd8 {[%emt 0:03:58]} 19. c3 {[%emt 0:02:16]} Nf6 {[%emt 0:06:01]} 20. Ng5 {[%emt 0:05:05]} Bd5 {[%emt 0:07:02]} 21. Qe2 {[%emt 0:09:46]} Nh5 {[%emt 0:23:28]} 22. Ndxe6 {[%emt 0:11:44]} fxe6 {[%emt 0:06:07]} 23. Nxe6 {[%emt 0:04:35]} Nxg3 {[%emt 0:02:01]} 24. hxg3 {[%emt 0:00:52]} Re8 {[%emt 0:00:28]} 25. Bxd5 {[%emt 0:03:55]} Nxd5 {[%emt 0:00:33]} 26. Qe5 {[%emt 0:03:11]} Qa7+ {[%emt 0:02:20]} 27. Kh1 {[%emt 0:02:50]} Nf6 {[%emt 0:00:12]} 28. g4 {[%emt 0:01:40]} Bf8 {[%emt 0:07:17]} 29. g5 {[%emt 0:00:52]} Nd7 {[%emt 0:00:46]} 30. Qd5 {[%emt 0:00:52]} Nb6 {[%emt 0:00:52]} 31. Qf5 {[%emt 0:01:23]} Qf7 {[%emt 0:02:29]} 32. g4 {[%emt 0:04:13]} Nc4 {[%emt 0:02:45]} 33. Re2 {[%emt 0:01:13]} Nxb2 {[%emt 0:03:55]} 34. Qxf7+ {[%emt 0:02:37]} Kxf7 {[%emt 0:00:06]} 35. g6+ {[%emt 0:00:47]} Kg8 {[%emt 0:01:55]} 36. gxh7+ {[%emt 0:00:28]} Kh8 {[%emt 0:00:41]} 37. Rde1 {[%emt 0:00:27]} Bxa3 {[%emt 0:00:51]} 38. f4 {[%emt 0:00:48]} Nd3 {[%emt 0:01:32]} 39. Rf1 {[%emt 0:00:37]} Rxc3 {[%emt 0:01:20]} 40. f5 {[%emt 0:00:32]} Nc5 {[%emt 0:00:34]} 41. Rd1 {[%emt 0:00:45]} Nxe6 {[%emt 0:00:30]} 42. fxe6 {[%emt 0:01:01]} Rc6 {[%emt 0:01:01]} 0-1

[Event "46th OKU-B 2019"]
[Site "Utrecht"]
[Date "2019.06.01"]
[Round "3.5"]
[White "Krouwel, Robert"]
[Black "Van den Belt, Peter"]
[Result "1-0"]
[ECO "D79"]
[WhiteElo "1841"]
[BlackElo "1737"]
[Annotator "NA"]
[PlyCount "71"]
[EventDate "2019.05.31"]
[EventType "swiss"]
[EventCountry "NED"]
[SourceTitle "playchess.com"]
[Source "ChessBase"]
[SourceQuality "1"]
[TimeControl "6600+10"]

1. d4 {[%emt 0:00:00]} d5 {[%emt 0:00:03]} 2. Nf3 {[%emt 0:00:05]} Nf6 {[%emt 0:03:06]} 3. g3 {[%emt 0:00:09]} g6 {[%emt 0:00:07]} 4. Bg2 {[%emt 0:00:05]} Bg7 {[%emt 0:00:05]} 5. O-O {[%emt 0:00:13]} O-O {[%emt 0:00:04]} 6. c4 {[%emt 0:01:11]} c6 {[%emt 0:00:26]} 7. Nc3 {[%emt 0:00:20]} e6 {[%emt 0:01:32]} 8. cxd5 {[%emt 0:03:05]} cxd5 {[%emt 0:00:19]} 9. Ne5 {[%emt 0:04:21]} a6 {[%emt 0:01:08]} 10. f4 {[%emt 0:01:08]} Nc6 {[%emt 0:03:48]} 11. Nxc6 {[%emt 0:00:59]} bxc6 {[%emt 0:00:08]} 12. Na4 {[%emt 0:01:04]} a5 {[%emt 0:05:49]} 13. b3 {[%emt 0:01:19]} Nd7 {[%emt 0:01:11]} 14. Ba3 {[%emt 0:00:22]} Re8 {[%emt 0:00:24]} 15. Rc1 {[%emt 0:00:16]} Nb8 {[%emt 0:02:01]} 16. Bc5 {[%emt 0:04:26]} Na6 {[%emt 0:01:58]} 17. Bb6 {[%emt 0:00:52]} Qf6 {[%emt 0:00:27]} 18. e3 {[%emt 0:02:29]} Nb8 {[%emt 0:01:55]} 19. Bc7 {[%emt 0:00:58]} Ba6 {[%emt 0:01:01]} 20. Rf2 {[%emt 0:00:24]} Bb5 {[%emt 0:00:50]} 21. Nc5 {[%emt 0:00:35]} Qe7 {[%emt 0:02:01]} 22. Bxb8 {[%emt 0:05:06]} Rexb8 {[%emt 0:00:20]} 23. Bf1 {[%emt 0:00:18]} g5 {[%emt 0:03:18]} 24. Bxb5 {[%emt 0:00:40]} cxb5 {[%emt 0:00:22]} 25. f5 {[%emt 0:00:17]} exf5 {[%emt 0:00:20]} 26. Qf3 {[%emt 0:00:29]} f4 {[%emt 0:01:48]} 27. gxf4 {[%emt 0:00:06]} gxf4 {[%emt 0:00:38]} 28. Qxf4 {[%emt 0:00:07]} Rb6 {[%emt 0:00:24]} 29. Rg2 {[%emt 0:02:15]} Rf6 {[%emt 0:01:13]} 30. Qg5 {[%emt 0:00:38]} Rf1+ {[%emt 0:04:15]} 31. Rxf1 {[%emt 0:00:18]} Qxg5 {[%emt 0:00:08]} 32. Rxg5 {[%emt 0:00:17]} Re8 {[%emt 0:00:02]} 33. Rg3 {[%emt 0:00:40]} Kf8 {[%emt 0:00:19]} 34. Nd7+ {[%emt 0:00:16]} Ke7 {[%emt 0:00:10]} 35. Rxg7 {[%emt 0:00:11]} Kxd7 {[%emt 0:00:04]} 36. Rfxf7+ {[%emt 0:00:20]} 1-0

[Event "46th OKU-B 2019"]
[Site "Utrecht"]
[Date "2019.06.01"]
[Round "3.6"]
[White "Gevorkjan, Lewon"]
[Black "Klein, Jorik"]
[Result "1/2-1/2"]
[ECO "E90"]
[WhiteElo "1807"]
[BlackElo "1839"]
[Annotator "NA"]
[PlyCount "80"]
[EventDate "2019.05.31"]
[EventType "swiss"]
[EventCountry "NED"]
[SourceTitle "playchess.com"]
[Source "ChessBase"]
[SourceQuality "1"]
[TimeControl "6600+10"]

1. Nf3 {[%emt 0:00:00]} Nf6 {[%emt 0:00:00]} 2. d4 {[%emt 0:00:08]} g6 {[%emt 0:00:06]} 3. c4 {[%emt 0:00:11]} Bg7 {[%emt 0:00:06]} 4. Nc3 {[%emt 0:00:06]} O-O {[%emt 0:00:07]} 5. e4 {[%emt 0:00:30]} d6 {[%emt 0:00:05]} 6. h3 {[%emt 0:00:21]} c5 {[%emt 0:11:58]} 7. dxc5 {[%emt 0:03:55]} dxc5 {[%emt 0:01:48]} 8. Be3 {[%emt 0:00:09]} b6 {[%emt 0:05:25]} 9. Qc2 {[%emt 0:01:05]} Nc6 {[%emt 0:02:03]} 10. Rd1 {[%emt 0:00:53]} Qc7 {[%emt 0:02:09]} 11. a3 {[%emt 0:00:18]} e5 {[%emt 0:14:38]} 12. Nd5 {[%emt 0:03:47]} Qb8 {[%emt 0:05:02]} 13. Bd3 {[%emt 0:02:53]} Nd4 {[%emt 0:04:08]} 14. Nxd4 {[%emt 0:01:04]} cxd4 {[%emt 0:00:33]} 15. Bd2 {[%emt 0:00:22]} Nxd5 {[%emt 0:04:45]} 16. cxd5 {[%emt 0:03:47]} a5 {[%emt 0:04:33]} 17. O-O {[%emt 0:01:10]} Bd7 {[%emt 0:03:08]} 18. Rc1 {[%emt 0:03:07]} Rc8 {[%emt 0:03:07]} 19. Qb1 {[%emt 0:02:03]} Qb7 {[%emt 0:00:39]} 20. Rxc8+ {[%emt 0:00:08]} Rxc8 {[%emt 0:00:04]} 21. Rc1 {[%emt 0:00:04]} Bf8 {[%emt 0:01:19]} 22. f4 {[%emt 0:01:45]} f6 {[%emt 0:03:01]} 23. fxe5 {[%emt 0:00:33]} fxe5 {[%emt 0:00:11]} 24. Rf1 {[%emt 0:00:03]} Be8 {[%emt 0:10:43]} 25. Qe1 {[%emt 0:01:45]} Rc7 {[%emt 0:01:19]} 26. Qg3 {[%emt 0:02:52]} Bg7 {[%emt 0:00:12]} 27. Qg4 {[%emt 0:02:06]} Qc8 {[%emt 0:00:43]} 28. Qh4 {[%emt 0:00:53]} Qd7 {[%emt 0:01:46]} 29. Bg5 {[%emt 0:02:46]} Qd6 {[%emt 0:01:23]} 30. Rf3 {[%emt 0:04:29]} b5 {[%emt 0:04:35]} 31. Kh2 {[%emt 0:02:20]} b4 {[%emt 0:02:41]} 32. axb4 {[%emt 0:02:08]} axb4 {[%emt 0:00:03]} 33. Bf6 {[%emt 0:00:43]} Rf7 {[%emt 0:01:16]} 34. Bxg7 {[%emt 0:00:11]} Rxf3 {[%emt 0:02:21]} 35. gxf3 {[%emt 0:00:05]} Kxg7 {[%emt 0:00:03]} 36. Kg2 {[%emt 0:00:53]} Qc7 {[%emt 0:02:24]} 37. Qe1 {[%emt 0:02:48]} Qc5 {[%emt 0:00:22]} 38. Qg3 {[%emt 0:00:15]} Qd6 {[%emt 0:00:41]} 39. Qe1 Qc5 {[%emt 0:00:01]} 40. Qe2 {[%emt 0:00:03]} Qc1 1/2-1/2

[Event "46th OKU-B 2019"]
[Site "Utrecht"]
[Date "2019.06.01"]
[Round "3.7"]
[White "Manschot, Thomas"]
[Black "Shadrin, Mitia"]
[Result "1-0"]
[ECO "A58"]
[WhiteElo "1803"]
[BlackElo "1709"]
[Annotator "NA"]
[PlyCount "61"]
[EventDate "2019.05.31"]
[EventType "swiss"]
[EventCountry "NED"]
[SourceTitle "playchess.com"]
[Source "ChessBase"]
[SourceQuality "1"]
[TimeControl "6600+10"]

1. d4 {[%emt 0:00:00]} Nf6 {[%emt 0:00:00]} 2. c4 {[%emt 0:00:03]} c5 {[%emt 0:00:03]} 3. d5 {[%emt 0:00:04]} b5 {[%emt 0:00:04]} 4. cxb5 {[%emt 0:00:06]} a6 {[%emt 0:00:04]} 5. bxa6 {[%emt 0:00:49]} Bxa6 {[%emt 0:00:05]} 6. Nc3 {[%emt 0:00:08]} g6 {[%emt 0:00:18]} 7. g3 {[%emt 0:00:48]} d6 {[%emt 0:00:09]} 8. Nf3 {[%emt 0:00:25]} Bg7 {[%emt 0:00:30]} 9. Bg2 {[%emt 0:03:32]} Nbd7 {[%emt 0:01:28]} 10. h3 {[%emt 0:01:04]} Nb6 {[%emt 0:00:12]} 11. Rb1 {[%emt 0:03:16]} Bc4 {[%emt 0:02:05]} 12. b3 {[%emt 0:12:25]} Bxd5 {[%emt 0:04:38]} 13. O-O {[%emt 0:03:53]} O-O {[%emt 0:00:27]} 14. Bb2 {[%emt 0:02:30]} Bb7 {[%emt 0:00:57]} 15. Qc2 {[%emt 0:03:08]} Nbd5 {[%emt 0:02:04]} 16. Nxd5 {[%emt 0:15:27]} Bxd5 {[%emt 0:00:41]} 17. Bxf6 {[%emt 0:00:19]} Bxf6 {[%emt 0:00:13]} 18. Rfd1 {[%emt 0:03:11]} Be6 {[%emt 0:01:29]} 19. Nd2 {[%emt 0:06:02]} Ra6 {[%emt 0:01:46]} 20. Ne4 {[%emt 0:01:57]} Bg7 {[%emt 0:02:29]} 21. Nxc5 {[%emt 0:03:48]} Qc7 {[%emt 0:02:19]} 22. Qd3 {[%emt 0:00:31]} Rxa2 {[%emt 0:01:30]} 23. Nxe6 {[%emt 0:01:47]} fxe6 {[%emt 0:00:43]} 24. Qe3 {[%emt 0:04:28]} e5 {[%emt 0:01:15]} 25. b4 {[%emt 0:07:22]} Qc2 {[%emt 0:00:34]} 26. Bd5+ {[%emt 0:00:26]} Kh8 {[%emt 0:00:09]} 27. Bxa2 {[%emt 0:00:14]} Qxa2 {[%emt 0:00:08]} 28. b5 {[%emt 0:02:41]} d5 {[%emt 0:00:23]} 29. Qd2 {[%emt 0:01:00]} Qa7 {[%emt 0:00:18]} 30. b6 {[%emt 0:00:10]} Qa6 {[%emt 0:00:17]} 31. Qd3 {[%emt 0:02:15]} 1-0

[Event "46th OKU-B 2019"]
[Site "Utrecht"]
[Date "2019.06.01"]
[Round "3.8"]
[White "Molanus, Lennart"]
[Black "Rookus, Sjoerd"]
[Result "0-1"]
[ECO "A56"]
[WhiteElo "1631"]
[BlackElo "1815"]
[Annotator "NA"]
[PlyCount "56"]
[EventDate "2019.05.31"]
[EventType "swiss"]
[EventCountry "NED"]
[SourceTitle "playchess.com"]
[Source "ChessBase"]
[SourceQuality "1"]
[TimeControl "6600+10"]

1. d4 {[%emt 0:00:00]} Nf6 {[%emt 0:00:13]} 2. c4 {[%emt 0:00:00]} c5 {[%emt 0:00:17]} 3. d5 {[%emt 0:00:00]} e5 {[%emt 0:00:08]} 4. Nc3 {[%emt 0:02:45]} d6 {[%emt 0:00:20]} 5. e4 {[%emt 0:01:39]} Nbd7 {[%emt 0:00:42]} 6. g3 {[%emt 0:02:25]} Be7 {[%emt 0:03:24]} 7. Bg2 {[%emt 0:00:28]} Nf8 {[%emt 0:03:00]} 8. Nf3 {[%emt 0:04:34]} Ng6 {[%emt 0:00:35]} 9. a3 {[%emt 0:00:37]} O-O {[%emt 0:00:46]} 10. b4 {[%emt 0:00:28]} b6 {[%emt 0:00:23]} 11. O-O {[%emt 0:01:02]} h6 {[%emt 0:01:24]} 12. b5 {[%emt 0:01:37]} Nh7 {[%emt 0:01:07]} 13. a4 {[%emt 0:02:06]} Ng5 {[%emt 0:03:38]} 14. Nxg5 {[%emt 0:01:21]} Bxg5 {[%emt 0:00:11]} 15. Bb2 {[%emt 0:07:59]} f5 {[%emt 0:04:44]} 16. a5 {[%emt 0:02:48]} Bd7 {[%emt 0:06:40]} 17. axb6 {[%emt 0:05:45]} axb6 {[%emt 0:01:25]} 18. Rxa8 {[%emt 0:00:07]} Qxa8 {[%emt 0:00:32]} 19. Qa1 {[%emt 0:00:13]} f4 {[%emt 0:12:27]} 20. f3 {[%emt 0:02:03]} fxg3 {[%emt 0:04:29]} 21. hxg3 {[%emt 0:00:27]} Be3+ {[%emt 0:00:25]} 22. Kh2 {[%emt 0:01:12]} Qd8 {[%emt 0:00:57]} 23. Ne2 {[%emt 0:18:44]} Qg5 {[%emt 0:05:18]} 24. g4 {[%emt 0:03:08]} Qh4+ {[%emt 0:00:50]} 25. Bh3 {[%emt 0:00:12]} Nf4 {[%emt 0:01:38]} 26. Nxf4 {[%emt 0:00:31]} Bxf4+ {[%emt 0:00:10]} 27. Kg2 {[%emt 0:00:04]} Qg3+ {[%emt 0:00:10]} 28. Kh1 {[%emt 0:00:03]} Qh2# {[%emt 0:00:28]} 0-1